Cogmind - Beta 13 @@@ ROGUE MODE // 2024.05.02 @ 01:01:09 Player: Alphabethead Result: Destroyed by Y-54 Guardian with Flak Gun Performance ------------- Evolutions (0) 0 Regions Visited (4) 800 Robots Destroyed (14) 70 Value Destroyed (334) 334 Prototype IDs (0) 0 Alien Tech Used (0) 0 Bonus (0) 0 TOTAL SCORE: 1204 Bonus ------- None Cogmind --------- Core Integrity 0/250 Matter 298/300 Energy 200/200 System Corruption 0% Temperature Cool (54) Movement Rolling (115) Ox1 Location -7/Recycling Parts ------- > --- POWER (1) -------- Subdweller Power Source > --- PROPULSION (2) --- Compact Wheel > --- UTILITY (2) ------ Small Storage Unit > --- WEAPON (2) ------- Lightning Gun Subdweller Machine Gun > --- INVENTORY (8) ---- Light Ion Engine Scrap Engine Experimental Sensor Array Improved Light Armor Plating Scrap Shield Fragment (48) Peak State ------------ > --- POWER ------------ Subdweller Power Source > --- PROPULSION ------- Wheel Subdweller Monowheel > --- UTILITY ---------- Improved Heat Sink Small Storage Unit > --- WEAPON ----------- Lightning Gun Subdweller Machine Gun > --- INVENTORY -------- Light Ion Engine Subdweller Monowheel Scrap Engine Experimental Sensor Array Scrap Shield Fragment [Rating: 18] Favorites ----------- Power Subdweller Power Source Engine Subdweller Power Source Propulsion Wheel Wheel Wheel Utility Small Storage Unit Device Seismic Detector Storage Small Storage Unit Weapon Light Assault Rifle Energy Gun Medium Laser Ballistic Gun Light Assault Rifle Build | -11 -10 -10 -10 -7 ------- Run | Yrd Mat Min Sub Rec Slots Evolved . | . . . . . Power . | . . . . . Propulsion . | . . . . . Utility . | . . . . . Weapon . | . . . . . Parts Attached 20 | 7 1 1 7 4 Power 3 | 1 . . 2 . Engine 3 | 1 . . 2 . Core . | . . . . . Reactor . | . . . . . Propulsion 7 | 2 1 . 2 2 Treads . | . . . . . Leg . | . . . . . Wheel 7 | 2 1 . 2 2 Hover . | . . . . . Flight . | . . . . . Utility 3 | 2 . . 1 . Device 2 | 1 . . 1 . Storage 1 | 1 . . . . Processor . | . . . . . Hackware . | . . . . . Protection . | . . . . . Artifact . | . . . . . Weapon 7 | 2 . 1 2 2 Energy Gun 4 | . . 1 1 2 Energy Cannon . | . . . . . Ballistic Gun 3 | 2 . . 1 . Ballistic Cannon . | . . . . . Launcher . | . . . . . Special Weapon . | . . . . . Impact Weapon . | . . . . . Slashing Weapon . | . . . . . Piercing Weapon . | . . . . . Special Melee Weapon . | . . . . . Unidentified Prototypes . | . . . . . Parts Lost 10 | . 1 . 6 3 Power 1 | . . . 1 . Propulsion 4 | . 1 . 2 1 Utility 2 | . . . 1 1 Weapon 3 | . . . 2 1 Highest Loss Streak 3 | . 1 . 3 2 To Critical Strikes . | . . . . . Average Slot Usage (%) 99 | . 99 100 99 99 Engine 14 | . 14 14 14 14 Wheel 27 | . 27 28 27 27 Device 13 | . 14 14 13 14 Storage 14 | . 14 14 14 14 Energy Gun 11 | . . 13 9 14 Ballistic Gun 16 | . 28 14 18 14 Naked Turns . | . . . . . Heaviest Build 19 | 13 13 14 19 19 Greatest Support 30 | 20 26 26 30 30 Greatest Overweight (x) 1 | . . . 1 1 Average Overweight (x) . | . . . . . Largest Inventory Capacity 8 | 8 8 8 8 8 Average Capacity 7 | 7 8 8 8 8 Most Carried 8 | 4 4 6 8 7 Average Carried 5 | 2 3 5 6 6 Final Capacity 8 | 8 8 8 8 8 Final Carried 6 | 4 4 6 5 6 Class Distribution -------------------- 55% | Mutant 44% | Scavenger-Mutant Dominant Class ---------------- Mutant | -10/Materials Mutant | -10/Mines Mutant | -10/Subcaves Scavenger-Mutant | -7/Recycling Resources | -11 -10 -10 -10 -7 ----------- Run | Yrd Mat Min Sub Rec Matter Collected 491 | 290 39 . 115 47 Remotely . | . . . . . Salvage Created 497 | 88 115 . 159 135 Parts 32 | 6 6 . 15 5 Haulers Intercepted . | . . . . . Recyclers Shooed . | . . . . . Parts Field Recycled . | . . . . . Retrieved Matter . | . . . . . Parts Self-Destructed 23 | . . . 23 . Prevented . | . . . . . Kills | -11 -10 -10 -10 -7 ------- Run | Yrd Mat Min Sub Rec Combat Hostiles Destroyed 9 | . 3 . 5 1 Guns 9 | . 3 . 5 1 Classes Destroyed 7 | 2 2 . 2 1 Tunneler 1 | 1 . . . . Recycler 2 | 1 . . . 1 Turret 2 | . . . 2 . Swarmer 4 | . 1 . 3 . Grunt 2 | . 2 . . . Sentry 1 | . . . . 1 Subdweller 2 | . . . 2 . Best Kill Streak 3 | 1 1 . 3 2 Combat Bots Only 3 | . 1 . 3 1 Max Kills in Single Turn 1 | 1 1 . 1 1 Gunslinging . | . . . . . Exploded . | . . . . . Melee . | . . . . . Uniques/NPCs Destroyed . | . . . . . Combat | -11 -10 -10 -10 -7 -------- Run | Yrd Mat Min Sub Rec Hostile Shots Fired 177 | . 25 . 92 60 Missed 64 | . 5 . 40 19 Damage Taken 917 | . 250 . 368 299 Core 252 | . 63 . 75 114 Absorbed by Shields . | . . . . . Core Remaining (%) 100 | 100 . . . . Volleys Fired 58 | 10 17 . 22 9 Largest 2 | 2 2 . 2 2 Hottest 90 | 40 40 . 90 85 Shots Fired 115 | 20 34 . 43 18 Gun 115 | 20 34 . 43 18 Cannon . | . . . . . Launcher . | . . . . . Special . | . . . . . Kinetic 90 | 20 34 . 27 9 Thermal 16 | . . . 16 . Explosive . | . . . . . Electromagnetic 9 | . . . . 9 Robot Hit Streak 18 | 4 18 . 5 17 Robot Miss Streak 2 | 2 2 . 2 2 Penetration Max . | . . . . . Secondary Targets 2 | . . . 2 . Max Gunslinging Chain 1 | . . . 1 . Shots Hit Robots 80 | 12 27 . 25 16 Core Hits 27 | 5 7 . 11 4 Critical Kills . | . . . . . Critical Parts Destroyed . | . . . . . Critical Strikes 1 | . . . 1 . Burn 1 | . . . 1 . Melee Attacks . | . . . . . Impact . | . . . . . Slashing . | . . . . . Piercing . | . . . . . Sneak Attacks . | . . . . . Combat Hostiles . | . . . . . Follow-up Attacks . | . . . . . Damage Inflicted 1002 | 91 212 . 377 322 Guns 1002 | 91 212 . 377 322 Cannons . | . . . . . Explosions . | . . . . . Melee . | . . . . . Ramming . | . . . . . Kinetic 702 | 91 212 . 218 181 Thermal 159 | . . . 159 . Explosive . | . . . . . Electromagnetic 141 | . . . . 141 Impact . | . . . . . Slashing . | . . . . . Piercing . | . . . . . Highest Corruption . | . . . . . Average Corruption . | . . . . . Corruption Purged . | . . . . . Corruption Blocked . | . . . . . Overload Shots . | . . . . . Overflow Damage . | . . . . . Projectiles . | . . . . . Explosions . | . . . . . Melee . | . . . . . Knockbacks . | . . . . . Impact . | . . . . . Kinetic . | . . . . . Secondary . | . . . . . Self-Inflicted Damage . | . . . . . Shots . | . . . . . Rammed . | . . . . . Targets Rammed . | . . . . . Kicked . | . . . . . Crushed . | . . . . . Highest Temperature 42 | . 25 . . 42 Average Temperature 11 | . 9 . . 16 Received Heat Transfer 357 | . 111 . 150 96 Siege Activations . | . . . . . Robots Corrupted . | . . . . . Combat Hostiles . | . . . . . Parts Fried 1 | . . . . 1 Impact Corruptions . | . . . . . Robots Melted . | . . . . . Combat Hostiles . | . . . . . Parts Melted . | . . . . . Heat Transferred 396 | . . . 396 . Parts Sabotaged . | . . . . . Parts Stolen . | . . . . . Parts Stripped . | . . . . . Power Chain Reactions . | . . . . . Alert | -11 -10 -10 -10 -7 ------- Run | Yrd Mat Min Sub Rec Peak Influence 223 | 10 86 33 . 223 Initial 223 | . 6 33 . 223 Average 80 | 3 36 28 . 136 Maximum Alert Level 1 | . . . . 1 Low Security (%) 72 | 100 100 100 . 44 Level 1 27 | . . . . 55 Level 2 . | . . . . . Level 3 . | . . . . . Level 4 . | . . . . . Level 5 . | . . . . . High Security . | . . . . . Max Security . | . . . . . Squads Dispatched 1 | . 1 . . . Investigation 1 | . 1 . . . Extermination . | . . . . . Reinforcement . | . . . . . Assault . | . . . . . Garrison . | . . . . . Intercept . | . . . . . Searches Triggered . | . . . . . Construction Impeded . | . . . . . Haulers Reinforced . | . . . . . Active Scanning Responses . | . . . . . Cargo Convoy Interrupts . | . . . . . Stealth | -11 -10 -10 -10 -7 --------- Run | Yrd Mat Min Sub Rec Distress Signals 1 | . 1 . . . Communications Jammed . | . . . . . Distress Signals . | . . . . . Times Spotted 50 | . 7 . 41 2 Peak Tracking Total 8 | . 3 . 8 1 Tactical Retreats 5 | . . . 5 . Traps | -11 -10 -10 -10 -7 ------- Run | Yrd Mat Min Sub Rec Traps Triggered 1 | . . . 1 . Indirectly . | . . . . . Trap Hack Attempts . | . . . . . Triggered . | . . . . . Disarmed . | . . . . . Reprogrammed . | . . . . . Reused . | . . . . . Traps Extracted . | . . . . . Installed . | . . . . . Triggered . | . . . . . Machines | -11 -10 -10 -10 -7 ---------- Run | Yrd Mat Min Sub Rec Machines Disabled 1 | . . . 1 . Max in Single Turn 1 | . . . 1 . Machines Repaired . | . . . . . Machines Dismantled . | . . . . . Machines Sabotaged . | . . . . . Overloaded Fab Kills . | . . . . . Hacking | -11 -10 -10 -10 -7 --------- Run | Yrd Mat Min Sub Rec Machines Accessed 4 | . 2 . . 2 Terminals 4 | . 2 . . 2 Fabricators . | . . . . . Repair Stations . | . . . . . Recycling Units . | . . . . . Scanalyzers . | . . . . . Garrison Access . | . . . . . Total Hacks 11 | . 6 . . 5 Successful 3 | . 2 . . 1 Failed 8 | . 4 . . 4 Catastrophic 2 | . 2 . . . Database Lockouts . | . . . . . Manual . | . . . . . Terminals 11 | . 6 . . 5 Fabricators . | . . . . . Repair Stations . | . . . . . Recycling Units . | . . . . . Scanalyzers . | . . . . . Garrison Access . | . . . . . Terminal Hacks 3 | . 2 . . 1 Alert Level 1 | . 1 . . . Zone Layout 2 | . 1 . . 1 Fabricator Hacks . | . . . . . Repair Station Hacks . | . . . . . Recycling Unit Hacks . | . . . . . Scanalyzer . | . . . . . Garrison Access Hacks . | . . . . . Unauthorized Hacks . | . . . . . Terminals . | . . . . . Fabricators . | . . . . . Repair Stations . | . . . . . Recycling Units . | . . . . . Scanalyzers . | . . . . . Garrison Access . | . . . . . Data Cores Recovered . | . . . . . Used . | . . . . . Hacking Detections 4 | . 2 . . 2 Full Trace Events 1 | . 1 . . . Feedback Events . | . . . . . Feedback Blocked . | . . . . . Robot Schematics Acquired . | . . . . . Robots Built . | . . . . . Authchips . | . . . . . Time . | . . . . . Total Robot Build Rating . | . . . . . Part Schematics Acquired . | . . . . . Parts Built . | . . . . . Authchips . | . . . . . Time . | . . . . . Total Part Build Rating . | . . . . . Parts Repaired . | . . . . . Time . | . . . . . Parts Recycled . | . . . . . Recycled Matter . | . . . . . Retrieved Matter . | . . . . . Retrieved Components . | . . . . . Parts Scanalyzed . | . . . . . Part Schematics Acquired . | . . . . . Parts Damaged . | . . . . . Bothacking | -11 -10 -10 -10 -7 ------------ Run | Yrd Mat Min Sub Rec Used RIF Installer . | . . . . . Robots Hacked . | . . . . . Non-combat . | . . . . . Combat . | . . . . . Robot Hacks Applied . | . . . . . Relay Couplers Released . | . . . . . Fabnet Peak Effective % . | . . . . . Robots Rewired . | . . . . . Allies Hacked . | . . . . . Hacks Repelled . | . . . . . Allies | -11 -10 -10 -10 -7 -------- Run | Yrd Mat Min Sub Rec Total Allies . | . . . . . Largest Group . | . . . . . Highest-Rated Group . | . . . . . Highest-Rated Ally . | . . . . . Total Orders . | . . . . . Ally Attacks . | . . . . . Total Damage . | . . . . . Kills . | . . . . . Allies Corrupted . | . . . . . Allies Melted . | . . . . . Intel | -11 -10 -10 -10 -7 ------- Run | Yrd Mat Min Sub Rec Robot Analysis Total . | . . . . . Derelict Logs Recovered . | . . . . . Drone Launches . | . . . . . Drone Recoveries . | . . . . . Exploration | -11 -10 -10 -10 -7 ------------- Run | Yrd Mat Min Sub Rec Turns Passed 2207 | 112 165 461 750 719 Spaces Moved 1720 | 90 131 112 695 692 Core 2 | 2 . . . . Treads . | . . . . . Legs . | . . . . . Wheels 1718 | 88 131 112 695 692 Hover . | . . . . . Flight . | . . . . . Fastest Speed 50 | 50 80 90 80 90 Average Speed 89 | 79 86 90 87 93 Slowest Speed 95 | 80 90 90 95 95 Overloaded Moves . | . . . . . Propulsion Burnouts . | . . . . . Robots Hopped . | . . . . . Cave-ins Triggered . | . . . . . Exploration Rate (%) 36 | 4 26 26 32 95 Regions Visited 4 Branch Regions 3 Pre-discovered Areas . | . . . . . Known Exits Taken . | . . . . . Unknown Exits Taken 4 | 1 1 1 1 . Scrap Searched 1 | . . . 1 . Spaces Dug . | . . . . . Terrain Destroyed 1 | . . . . 1 Melee . | . . . . . Projectile 1 | . . . . 1 AOE . | . . . . . Terrain Rammed . | . . . . . Walls Destroyed . | . . . . . Machines Disabled . | . . . . . Actions | -11 -10 -10 -10 -7 --------- Run | Yrd Mat Min Sub Rec Total 2275 | 110 155 471 794 745 Wait 457 | . 6 357 63 31 Move 1716 | 89 130 111 694 692 Hop . | . . . . . Pick Up 16 | 4 1 2 6 3 Fast Attach 9 | 7 . . . 2 Attach 8 | . 1 . 6 1 Detach 2 | . . . . 2 Swap 3 | . . 1 1 1 Drop 6 | . . . 2 4 Fire 58 | 10 17 . 22 9 Melee . | . . . . . Ram . | . . . . . Kick . | . . . . . Crush . | . . . . . Escape Stasis . | . . . . . Rewire . | . . . . . Trap . | . . . . . Miscellaneous . | . . . . . Route ------- -11/Scrapyard -10/Materials (discovered 2 exits: [Mat] / [*Min]) -10/Mines (discovered 2 exits: [*Mat] / [*Sub]) -10/Subcaves (discovered 3 exits: [*Mat x2] / *Rec) -7/Recycling (discovered 1 exit: [*Fac]) History --------- Turn | Location | Event 12 | -11/Scrapyard | Discovered new exit (range 16) 113 | -11/Scrapyard | Entered Materials 224 | -10/Materials | Discovered new exit (range 14) 271 | -10/Materials | Discovered new exit (range 8) 278 | -10/Materials | Entered Mines 289 | -10/Mines | Discovered new exit (range 11) 306 | -10/Mines | Build established: Mutant 317 | -10/Mines | Met a Derelict bent on vengeance 321 | -10/Mines | Found a damaged Exp. Sensor Array with a note attached 333 | -10/Mines | Found Prototype Device 715 | -10/Mines | Discovered new exit (range 4) 739 | -10/Mines | Entered Subcaves 1012 | -10/Subcaves | Discovered new exit (range 16) 1159 | -10/Subcaves | Discovered new exit (range 14) 1311 | -10/Subcaves | Lost 3 parts (1n1u1w) 1416 | -10/Subcaves | Discovered new exit (range 11) 1465 | -10/Subcaves | Core integrity fell below 50% 1489 | -10/Subcaves | Entered Recycling 1489 | -7/Recycling | Found Scrap Engine 1602 | -7/Recycling | Build established: Scavenger-Mutant 1803 | -7/Recycling | Discovered new exit (range 16) 2202 | -7/Recycling | Core integrity fell below 20% 2208 | -7/Recycling | Destroyed by Y-54 Guardian with Flak Gun Last Messages --------------- 02053_ Imp. Heat Sink fried. 02053_ Y-54 Guardian destroyed. 02055_ R-06 Scavenger collects Imp. Light Armor Plating. 02056_ Acquired 25 matter. 02057_ R-06 Scavenger destroyed. 02058_ Acquired 2 matter. 02061_ Acquired Imp. Light Armor Plating. 02061_ R-06 Scavenger collects Corrupted Com. Wheel. 02062_ R-06 Scavenger collects Corrupted Sml. Storage Unit. 02063_ Acquired Com. Wheel. 02065_ Acquired 10 matter. 02065_ R-06 Scavenger collects Lgt. Ion Engine. 02096_ R-06 Scavenger inserts Lgt. Ion Engine into recycling unit. 02179_ Y-54 Guardian springs to life. 02201_ Wheel destroyed. 02205_ Imp. Heat Sink destroyed. Map ----- +----------------------------------------------------+ | | | | | | | | | | | | | | | | | | | | | | | | | | | | | | | | | | | | | ????????????????????#############????? | | ????????????????????#"""""""""""#????? | | ###????????????????## """"T"""" ###??? | | #????????????????# #??? | | ##???????????????# """ """ """ #??? | | #???????????????# """ """ """ #??? | | ################?# """ """ """ #??? | | #?# #?# @ #??? | | #?# """ """" ####+##Y;########???? | | #?# "T" """" + ##??#!!!#???? | | #?# " " """" #### ##### ! ###?? | | ##### """" #??# #?? | | # #??# #?? | | + """" """" #??# #?? | | # """" """" #### #? | | ### # """" """" + #?? | | ?# # """" """" # #?? | | ?# # # #?? | | ! # # + ###### #?? | | # ########+##### #????# #?? | | + ?????? #????# #?? | | * ###??????#+##############????# #?? | | #???????? T #????????????# #?? | | #???????? #????????????# #?? | | #???????? """"" #????????????# #?? | | !!#???????? """"" #????????????# #?? | | #???????? """"" #????????????# #?? | | ]#???????? #????????????# #?? | | #????????"#######????????????# #?? | | ##?????????"#??#####???????????# #?? | | ??????########## # #?????###???# #?? | | ###???# #??####T##### #?? | +----------------------------------------------------+ Best States ------------- Heat Dissipation 39 Energy Generation 15 Energy Capacity 250 Matter Stores 300 Matter Capacity 300 Sight Range 16 Terrain Scan Density 10 Evasion (%) 44 Item Schematics ----------------- None Robot Schematics ------------------ None Fabricated ------------ Nothing Alien Tech Used ----------------- None Achievements -------------- None Challenges ------------ None Game ------ Seed FortressTrackerClaw Manual? 0 Play Time 00:18:27 Cumulative 18.2 hours Start 2024.05.02 @ 00:44:50 End 2024.05.02 @ 01:01:09 Sessions 1 Manual Loads 0 Difficulty Rogue Special Mode None Game No. 32 Rogue 32 Adventurer 0 Explorer 0 Win Type - Total 0 Types 0/0/0/0/0/0/0/0/0 Lore% 19 Gallery% 21 Achievement% 18 Wizard Run 0 Options --------- Layout 1 ASCII 0 Keyboard 1 Movement Arrows Keybinds 0 Fullscreen 1 Font 24/Smallcaps Map View 50x35 Zoom Use 0% Tactical HUD 1 Map Filters NONE Filters NONE Steam 1 RUN: 61c5af23-e4d3-4671-9f56-09d4dd55f35b